Cogmind - Beta 17.1 @@@ ROGUE MODE // 2026.09.01 @ 01:35:20 Player: Finn Result: Destroyed by as-84857 with Assembled Blade Performance ------------- Evolutions (0) 0 Regions Visited (3) 600 Robots Destroyed (8) 40 Value Destroyed (171) 171 Prototype IDs (0) 0 Alien Tech Used (0) 0 Bonus (0) 0 TOTAL SCORE: 811 Bonus ------- None Cogmind --------- Core Integrity 0/250 Matter 278/300 Energy 100/100 System Corruption 5% Temperature Cool (0) Movement Core (50) Location -10/Exiles Parts ------- > --- POWER (1) -------- (None) > --- PROPULSION (2) --- (None) > --- UTILITY (2) ------ (None) > --- WEAPON (2) ------- (None) > --- INVENTORY (5) ---- Light Ion Engine Light Treads Light Treads Aluminum Leg Aluminum Leg Peak State ------------ > --- POWER ------------ Ion Engine > --- PROPULSION ------- Compact Wheel Compact Wheel > --- UTILITY ---------- Small Storage Unit Terrain Scanner > --- WEAPON ----------- Assault Rifle Assault Rifle > --- INVENTORY -------- Light Ion Engine Light Nuclear Core Light Treads Light Treads Aluminum Leg Aluminum Leg Compact Wheel EM Pulse Gun [Rating: 8] Favorites ----------- Power Ion Engine Engine Ion Engine Power Core Light Nuclear Core Propulsion Compact Wheel Wheel Compact Wheel Utility Small Storage Unit Device Terrain Scanner Storage Small Storage Unit Weapon Assault Rifle Energy Gun EM Pulse Gun Ballistic Gun Assault Rifle Build | -11 -10 -10 -10 ------- Run | Yrd Mat Min Exi Slots Evolved . | . . . . Power . | . . . . Propulsion . | . . . . Utility . | . . . . Weapon . | . . . . Parts Attached 10 | 7 2 . 1 Power 2 | 1 . . 1 Engine 1 | 1 . . . Core 1 | . . . 1 Reactor . | . . . . Propulsion 3 | 2 1 . . Treads . | . . . . Leg . | . . . . Wheel 3 | 2 1 . . Hover . | . . . . Flight . | . . . . Utility 2 | 1 1 . . Device 1 | . 1 . . Storage 1 | 1 . . . Processor . | . . . . Hackware . | . . . . Protection . | . . . . Artifact . | . . . . Weapon 3 | 3 . . . Energy Gun 1 | 1 . . . Energy Cannon . | . . . . Ballistic Gun 2 | 2 . . . Ballistic Cannon . | . . . . Launcher . | . . . . Special Weapon . | . . . . Impact Weapon . | . . . . Slashing Weapon . | . . . . Piercing Weapon . | . . . . Special Melee Weapon . | . . . . Unidentified Prototypes . | . . . . Parts Lost 8 | . . . 8 Power 2 | . . . 2 Propulsion 1 | . . . 1 Utility 2 | . . . 2 Weapon 3 | . . . 3 Highest Loss Streak 8 | . . . 8 To Critical Strikes . | . . . . Average Backups 7 | 3 6 7 7 Power 1 | . 1 1 2 Propulsion 4 | 2 4 5 5 Utility . | . . . . Weapon . | . 1 1 . Tool/Special . | . . . . Unused Backups 5 | . . . 5 Power 1 | . . . 1 Propulsion 4 | . . . 4 Utility . | . . . . Weapon . | . . . . Tool/Special . | . . . . Average Slot Usage (%) 94 | . 93 100 94 Engine 13 | . 14 14 12 Wheel 27 | . 28 28 26 Device 11 | . 7 14 13 Storage 14 | . 14 14 14 Ballistic Gun 27 | . 28 28 26 Peak Build Rating 8 | 6 7 8 8 Average Rating 7 | 4 6 7 7 On Entrance 5 | . 6 7 8 Avg Prop Armor Cover (%) . | . . . . Naked Turns 1 | . . . 1 Heaviest Build 15 | 14 15 15 15 Greatest Support 32 | 32 32 32 32 Greatest Overweight (x) 3 | . . . 3 Average Overweight (x) . | . . . . Largest Inventory Capacity 8 | 8 8 8 8 Average Capacity 7 | 6 8 8 7 Most Carried 8 | 6 8 8 8 Average Carried 7 | 4 6 7 7 Final Capacity 8 | 8 8 8 5 Final Carried 8 | 6 7 8 5 Class Distribution -------------------- 100% | Mutant Dominant Class ---------------- Mutant | -10/Materials Mutant | -10/Mines Mutant | -10/Exiles Resources | -11 -10 -10 -10 ----------- Run | Yrd Mat Min Exi Matter Collected 389 | 256 58 54 21 Remotely . | . . . . Salvage Created 254 | . 145 88 21 Parts 17 | . 13 4 . Haulers Intercepted . | . . . . Recyclers Shooed . | . . . . Parts Field Recycled . | . . . . Retrieved Matter . | . . . . Parts Self-Destructed . | . . . . Prevented . | . . . . Parts Restored . | . . . . Kills | -11 -10 -10 -10 ------- Run | Yrd Mat Min Exi Combat Hostiles Destroyed 6 | . 4 2 . Guns 6 | . 4 2 . Classes Destroyed 4 | . 3 . 1 Recycler 1 | . 1 . . Swarmer 3 | . 3 . . Grunt 3 | . 1 2 . Zionite 1 | . . . 1 Best Kill Streak 5 | . 5 2 1 Combat Bots Only 4 | . 4 2 . Max Kills in Single Turn 1 | . 1 1 1 Gunslinging . | . . . . Exploded . | . . . . Melee . | . . . . Uniques/NPCs Destroyed . | . . . . Combat | -11 -10 -10 -10 -------- Run | Yrd Mat Min Exi Hostile Shots Fired 57 | . 9 12 36 Missed 15 | . 3 2 10 Hits 42 | . 6 10 26 Melee 13 | . . . 13 Projectile 29 | . 6 10 13 Critical Strikes 2 | . . . 2 Damage Taken 803 | . 56 133 614 Core 252 | . . 35 217 Absorbed by Shields . | . . . . Core Remaining (%) 100 | 100 . . . Volleys Fired 28 | . 7 7 14 Largest 2 | . 2 2 2 Hottest 60 | . 40 40 60 Shots Fired 51 | . 14 14 23 Gun 51 | . 14 14 23 Cannon . | . . . . Launcher . | . . . . Special . | . . . . Kinetic 47 | . 14 14 19 Thermal . | . . . . Explosive . | . . . . Electromagnetic 4 | . . . 4 Robot Hit Streak 8 | . 7 8 7 Robot Miss Streak 3 | . 2 1 3 Penetration Max . | . . . . Secondary Targets 1 | . . 1 . Max Gunslinging Chain 1 | . . 1 . Shots Hit Robots 30 | . 9 10 11 Core Hits 12 | . 6 5 1 Critical Kills 1 | . 1 . . Critical Parts Destroyed . | . . . . Critical Strikes 1 | . 1 . . Destroy 1 | . 1 . . Melee Attacks . | . . . . Impact . | . . . . Slashing . | . . . . Piercing . | . . . . Sneak Attacks . | . . . . Combat Hostiles . | . . . . Follow-up Attacks . | . . . . Damage Inflicted 391 | . 120 120 151 Guns 391 | . 120 120 151 Cannons . | . . . . Explosions . | . . . . Melee . | . . . . Ramming . | . . . . Kinetic 358 | . 120 120 118 Thermal . | . . . . Explosive . | . . . . Electromagnetic 33 | . . . 33 Impact . | . . . . Slashing . | . . . . Piercing . | . . . . Highest Corruption 5 | . . . 5 Average Corruption 5 | . . . 5 Corruption Purged . | . . . . Corruption Blocked . | . . . . Overload Shots . | . . . . Overflow Damage . | . . . . Projectiles . | . . . . Explosions . | . . . . Melee . | . . . . Knockbacks . | . . . . Impact . | . . . . Kinetic . | . . . . Secondary . | . . . . Self-Inflicted Damage . | . . . . Shots . | . . . . Rammed . | . . . . Targets Rammed . | . . . . Kicked . | . . . . Crushed . | . . . . Highest Temperature 4 | . . 4 . Average Temperature 2 | . . 2 . Received Heat Transfer 130 | . 12 78 40 Siege Activations . | . . . . Martial Activations . | . . . . Shielding Activations . | . . . . Robots Disrupted . | . . . . Combat Hostiles . | . . . . Robots Corrupted . | . . . . Combat Hostiles . | . . . . Parts Fried . | . . . . Impact Corruptions . | . . . . Robots Melted . | . . . . Combat Hostiles . | . . . . Parts Melted . | . . . . Heat Transferred . | . . . . Parts Sabotaged . | . . . . Parts Stolen . | . . . . Parts Stripped . | . . . . Power Chain Reactions . | . . . . Alert | -11 -10 -10 -10 ------- Run | Yrd Mat Min Exi Maximum Alert Level . | . . . . Low Security (%) 100 | 100 100 100 . Level 1 . | . . . . Level 2 . | . . . . Level 3 . | . . . . Level 4 . | . . . . Level 5 . | . . . . High Security . | . . . . Max Security . | . . . . Peak Influence 100 | . 100 57 . Initial 2 | . . 2 . Average 30 | . 36 35 . Influence Increases 182 | . 117 65 . Destroy 0b10 Robot/C 120 | . 80 40 . Destroy 0b10 Robot/NC 5 | . 5 . . Destroy Leader 20 | . 10 10 . Successful Hack 21 | . 21 . . Disable Machine 15 | . . 15 . Destroy Structure 1 | . 1 . . Influence Decreases 182 | . 110 55 17 Entered New Map 22 | . . 5 17 Time Decay 160 | . 110 50 . Squads Dispatched . | . . . . Investigation . | . . . . Extermination . | . . . . Reinforcement . | . . . . Assault . | . . . . Garrison . | . . . . Intercept . | . . . . Searches Triggered . | . . . . Construction Impeded . | . . . . Haulers Reinforced . | . . . . Active Scanning Responses . | . . . . Cargo Convoy Interrupts . | . . . . Stealth | -11 -10 -10 -10 --------- Run | Yrd Mat Min Exi Distress Signals . | . . . . Communications Jammed . | . . . . Distress Signals . | . . . . Times Spotted 24 | . 4 6 14 Peak Tracking Total 16 | . 3 4 16 Tactical Retreats 1 | . . . 1 Traps | -11 -10 -10 -10 ------- Run | Yrd Mat Min Exi Traps Triggered . | . . . . Indirectly . | . . . . Trap Hack Attempts . | . . . . Triggered . | . . . . Disarmed 1 | . 1 . . Reprogrammed . | . . . . Reused . | . . . . Traps Extracted . | . . . . Installed . | . . . . Triggered . | . . . . Machines | -11 -10 -10 -10 ---------- Run | Yrd Mat Min Exi Machines Disabled 3 | . . 1 2 Max in Single Turn 1 | . . 1 1 Machines Repaired . | . . . . Machines Dismantled . | . . . . Machines Sabotaged . | . . . . Overloaded Fab Kills . | . . . . Hacking | -11 -10 -10 -10 --------- Run | Yrd Mat Min Exi Machines Accessed 4 | . 3 . 1 Terminals 2 | . 2 . . Fabricators . | . . . . Repair Stations . | . . . . Recycling Units 1 | . 1 . . Scanalyzers . | . . . . Garrison Access . | . . . . Total Hacks 8 | . 4 . 4 Successful 8 | . 4 . 4 Failed . | . . . . Catastrophic . | . . . . Database Lockouts . | . . . . Manual . | . . . . Terminals 3 | . 3 . . Fabricators . | . . . . Repair Stations . | . . . . Recycling Units 1 | . 1 . . Scanalyzers . | . . . . Garrison Access . | . . . . Terminal Hacks 7 | . 3 . 4 Record 4 | . . . 4 Disarm Traps 2 | . 2 . . Patrol Status 1 | . 1 . . Fabricator Hacks . | . . . . Repair Station Hacks . | . . . . Recycling Unit Hacks 1 | . 1 . . Retrieve Components 1 | . 1 . . Scanalyzer . | . . . . Garrison Access Hacks . | . . . . Unauthorized Hacks . | . . . . Terminals . | . . . . Fabricators . | . . . . Repair Stations . | . . . . Recycling Units . | . . . . Scanalyzers . | . . . . Garrison Access . | . . . . Data Cores Recovered . | . . . . Used . | . . . . Hacking Detections 2 | . 2 . . Full Trace Events . | . . . . Feedback Events . | . . . . Feedback Blocked . | . . . . Robot Schematics Acquired . | . . . . Robots Built . | . . . . Authchips . | . . . . Time . | . . . . Total Robot Build Rating . | . . . . Part Schematics Acquired . | . . . . Parts Built . | . . . . Authchips . | . . . . Time . | . . . . Total Part Build Rating . | . . . . Part Studies Acquired . | . . . . Parts Repaired . | . . . . Time . | . . . . Parts Recycled . | . . . . Recycled Matter . | . . . . Retrieved Matter . | . . . . Retrieved Components 3 | . 3 . . Parts Scanalyzed . | . . . . Part Schematics Acquired . | . . . . Parts Damaged . | . . . . Bothacking | -11 -10 -10 -10 ------------ Run | Yrd Mat Min Exi Used RIF Installer . | . . . . Robots Hacked . | . . . . Non-combat . | . . . . Combat . | . . . . Robot Hacks Applied . | . . . . Relay Couplers Released . | . . . . Fabnet Peak Effective % . | . . . . Robots Rewired . | . . . . Allies Hacked . | . . . . Hacks Repelled . | . . . . Allies | -11 -10 -10 -10 -------- Run | Yrd Mat Min Exi Total Allies . | . . . . Largest Group . | . . . . Highest-Rated Group . | . . . . Highest-Rated Ally . | . . . . Total Orders . | . . . . Ally Attacks . | . . . . Total Damage . | . . . . Kills . | . . . . Allies Corrupted . | . . . . Allies Melted . | . . . . Intel | -11 -10 -10 -10 ------- Run | Yrd Mat Min Exi Active Infowar (turns) 694 | . 182 107 405 Terrain 694 | . 182 107 405 Robot Analysis Total . | . . . . Derelict Logs Recovered . | . . . . Drone Launches . | . . . . Drone Recoveries . | . . . . Exploration | -11 -10 -10 -10 ------------- Run | Yrd Mat Min Exi Turns Passed 942 | 85 319 107 431 Spaces Moved 806 | 67 263 86 390 Core 8 | 3 . . 5 Treads . | . . . . Legs . | . . . . Wheels 798 | 64 263 86 385 Hover . | . . . . Flight . | . . . . Fastest Speed 50 | 50 100 100 100 Average Speed 100 | 97 100 100 100 Slowest Speed 200 | 100 100 100 200 Overloaded Moves . | . . . . Propulsion Burnouts . | . . . . Robots Hopped . | . . . . Potential Cave-ins . | . . . . Cave-ins Triggered . | . . . . Exploration Rate (%) 33 | 4 41 12 76 Regions Visited 3 Branch Regions 2 Pre-discovered Areas 2 | . . 1 1 Known Exits Taken . | . . . . Unknown Exits Taken 3 | 1 1 1 . Scrap Searched . | . . . . Spaces Dug . | . . . . Terrain Destroyed . | . . . . Melee . | . . . . Projectile . | . . . . AOE . | . . . . Terrain Rammed . | . . . . Walls Destroyed . | . . . . Machines Disabled . | . . . . Actions | -11 -10 -10 -10 --------- Run | Yrd Mat Min Exi Total 888 | 85 304 93 406 Wait 31 | . 31 . . Move 803 | 66 262 85 390 Hop . | . . . . Pick Up 15 | 12 2 1 . Fast Attach . | . . . . Attach 9 | 6 1 . 2 Detach . | . . . . Swap 2 | 1 1 . . Drop . | . . . . Fire 28 | . 7 7 14 Melee . | . . . . Ram . | . . . . Kick . | . . . . Crush . | . . . . Escape Stasis . | . . . . Rewire . | . . . . Trap . | . . . . Miscellaneous . | . . . . Route ------- -11/Scrapyard -10/Materials (discovered 2 exits: [*Mat] / [*Min]) -10/Mines (discovered 2 exits: [*Mat] / *Exi) -10/Exiles (discovered 2 exits: [*Min x2]) History --------- Turn | Location | Event 13 | -11/Scrapyard | Discovered new exit (range 15) 86 | -11/Scrapyard | Entered Materials 279 | -10/Materials | Discovered new exit (range 11) 301 | -10/Materials | Build established: Mutant 383 | -10/Materials | Discovered new exit (range 16) 405 | -10/Materials | Entered Mines 443 | -10/Mines | Discovered new exit (range 5) 446 | -10/Mines | Learned location of Storage (-8) 457 | -10/Mines | Deemed a non-threat by the Exiles lab entrance 457 | -10/Mines | Discovered new exit (range 5) 512 | -10/Mines | Entered Exiles 529 | -10/Exiles | Discovered new exit (range 15) 543 | -10/Exiles | Met 8R-AWN 559 | -10/Exiles | Met EX-HEX 618 | -10/Exiles | Met EX-DEC 651 | -10/Exiles | Learned location of Zion (-7) 694 | -10/Exiles | Discovered new exit (range 14) 779 | -10/Exiles | Visited The Gauntlet 890 | -10/Exiles | Attacked by the Exiles 939 | -10/Exiles | Core integrity fell below 50% 943 | -10/Exiles | Core integrity fell below 20% 943 | -10/Exiles | Destroyed by as-84857 with Assembled Blade Last Messages --------------- 00889_ Machine disabled. 00890_ EXILES: Hostile robot within lab perimeter. Defensive protocols time, folks! 00905_ Ion Engine destroyed. 00905_ Machine disabled. 00909_ Assault Rifle destroyed. 00915_ Com. Wheel severed. 00917_ Terrain Scanner destroyed. 00921_ Com. Wheel destroyed. 00926_ W1-DM0 destroyed. 00928_ EX-BIN: "I just want to science!" 00935_ Machine disabled. 00935_ Acquired 21 matter. 00936_ Assault Rifle destroyed. 00938_ EM Pulse Gun destroyed. 00939_ Knocked back. 00942_ Sml. Storage Unit destroyed. 00942_ Lgt. Nuclear Core destroyed. 00942_ System corrupted by crushing effect (+1). 00942_ System corrupted by crushing effect (+4). Map ----- +----------------------------------------------------+ | ????????????????????????????#" " | | ????????????????????????????#"""" "" | | ????????????????????????????#"" ""## | | ????????????????????????????#" """"##? | | ????????????????????????????#""" """#?? | | ????????????????????????????## ""##?? | | ?????????????????????????#???#"" """##??? | | ?????????????????????????????##""" ##???? | | ??????????????????????????????##"""" ##????? | | ???????????????????????????????### #??#??? | | ?????????????????????????????????##### ##?????? | | ?????????????????????????????????????## #??????? | | ???????????????????#??????????????????# #???#??? | | ????????????#?????????????????#?##???## #??#???? | | ????????????????#???????#?????????????# ##?????? | | ???????#####??????????????#??###??????# #?#????? | | ??????"""""""?????""""""????""""""????# #??????? | | ??????"" ""???#"""""""#???"""""""#??# #?????#? | | ??????" "???"""""" "##??" """"#??# #??????? | | #????#"" ""#""#""" """#?#?"" """#??# #?????#? | | ??????"" "?#""#"" ""????"" ""?#?# ##?????? | | ########"""###""###"""########"""###### ######## | | #"""" "" """"""" """""""" """""" """""""# | | #" """""" " """ a cz "# | | #""" a a c z " | | #"""" = a@ a " | | #"" a a " | | #""" "" "" # | | #"" "" """"" " """"" " """" """""# | | ########"""########"""###""###"""########"""###### | | ??????"" ""????"" ""#""#"" ""????"" ""???? | | ?????#""" """#??#""" ""#""#""" ""???#"" """#?#? | | ?????#" """ "#??#" """"""""#" " "#??#"""""""#??? | | ?#???#"""""""#??#"""""""#""#"""""""???#"" """"#??? | | ?????#"""""""#??#"""""""????"""""""#???""""""????? | | ??????#######??????#"##?????####?#??????####?????? | | ???????????#?????????????????#???????????????????? | | ??????#?????#???????????????#????????????????????? | | ???????????????"??????????##?????????#???????????? | | ??????????????????#??????????????????????????????? | | | | | | | | | | | | | | | | | | | | | +----------------------------------------------------+ Best States ------------- Heat Dissipation 25 Energy Generation 10 Energy Capacity 250 Matter Stores 300 Matter Capacity 300 Sight Range 16 Terrain Scan Range 14 Terrain Scan Density 10 Evasion (%) 40 Item Schematics ----------------- None Robot Schematics ------------------ None Fabricated ------------ Nothing Repaired ---------- Nothing Studied --------- None Alien Tech Used ----------------- None Achievements -------------- None Challenges ------------ None Game ------ Seed AmuletMatterMallet Manual? 0 Play Time 00:08:47 Cumulative 26.6 hours Start 2026.09.01 @ 01:29:06 End 2026.09.01 @ 01:35:20 Sessions 1 Manual Loads 0 Difficulty Rogue Special Mode None Game No. 61 Rogue 44 Adventurer 15 Explorer 2 Win Type - Total 0 Types 0/0/0/0/0/0/0/0/0/0 Lore% 24 Gallery% 22 Achievement% 20 Wizard Run 0 Options --------- Layout 1 ASCII 0 Keyboard 0 Movement Mouse Keybinds 0 Fullscreen 1 Font 24/Smallcaps Map View 50x35 Zoom Use 0% Tactical HUD 1 Map Filters NONE Filters NONE Steam 1 RUN: 7574bbc4-b305-4d1b-9753-b6abb4eb619f